Workbook

Sheet 8.05
A2: МБОУ "СОШ №33" НМР РТ | D2: Отд./корп | E2: 2 неделя | H2: День | I2: 2023-05-08
I3: ,
A4: Раздел | B4: № рец. | C4: Блюдо | D4: Выход, г | E4: Цена | F4: Ккал | G4: Белки | H4: Жиры | I4: Угл-ды
A5: Завтрак
A6: 2 блюдо
A7: гор.напиток
A8: хлеб
A9: хлеб
D10: =SUM(D6:D9) -> 0 | F10: =SUM(F6:F9) -> 0.00 | G10: =SUM(G6:G9) -> 0.00 | H10: 0.00 | I10: 0.00
A11: Обед
A12: 1 блюдо
A13: 2 блюдо
A14: гарнир
A15: напиток
A16: хлеб
F17: =SUM(F12:F16) -> 0.00 | G17: =SUM(G12:G16) -> 0.00 | H17: 0.00 | I17: 0.00
C18: бесп питание младшие + допол. питание | D18: =SUM(D10+D17) -> 0 | F18: =SUM(F10+F17) -> 0.00 | G18: =SUM(G10+G17) -> 0.00 | H18: 0.00 | I18: 0.00
A20: Горячий завтрак (младшие)
A21: фрукты
A22: 2 блюдо
A23: гарнир
A24: гор.напиток
A25: хлеб
C27: бесплатное питание младшие | F27: =F21+F22+F23+F24+F25+F26 -> 0.00 | G27: =G21+G22+G23+G24+G25+G26 -> 0.00 | H27: =H21+H22+H23+H24+H25+H26 -> 0.00 | I27: =I21+I22+I23+I24+I25+I26 -> 0.00
A29: Раздел | B29: № рец. | C29: Блюдо | D29: Выход, г | E29: Цена | F29: Ккал | G29: Белки | H29: Жиры | I29: Угл-ды
A30: Старшие
A31: фрукты
A32: 2 блюдо
A33: гарнир
A34: гор.напиток
A35: хлеб
C37: питание старшие | F37: =SUM(F31:F35) -> 0.00 | G37: =SUM(G31:G35) -> 0.00 | H37: 0.00 | I37: 0.00

Sheet 9.05
A2: МБОУ "СОШ №33" НМР РТ | D2: Отд./корп | E2: 2 неделя | H2: День | I2: 2023-05-09
A4: Раздел | B4: № рец. | C4: Блюдо | D4: Выход, г | E4: Цена | F4: Ккал | G4: Белки | H4: Жиры | I4: Угл-ды
A5: Завтрак
A7: 2 блюдо
A8: гор.напиток
A9: хлеб
D10: =SUM(D6:D9) -> 0 | F10: =SUM(F6:F9) -> 0.00 | G10: =SUM(G6:G9) -> 0.00 | H10: 0.00 | I10: 0.00
A11: Обед
A12: доп.гарнир
A13: 1 блюдо
A14: 2 блюдо
A15: гарнир
A16: напиток
A17: хлеб
F18: =SUM(F12:F17) -> 0.00 | G18: =SUM(G12:G17) -> 0.00 | H18: =SUM(H12:H17) -> 0.00 | I18: =SUM(I12:I17) -> 0.00
C19: бесп питание младшие + допол. питание | D19: =D10+D18 -> 0 | E19: =SUM(E10+E18) -> 0.00 | F19: =SUM(F10+F18) -> 0.00 | G19: =SUM(G10+G18) -> 0.00 | H19: =SUM(H10+H18) -> 0.00 | I19: =SUM(I10+I18) -> 0.00
A21: Горячий завтрак (младшие)
A22: доп.гарнир
A23: 2 блюдо
A24: гарнир
A25: гор.напиток
A26: хлеб
C28: бесплатное питание младшие | F28: =SUM(F22:F27) -> 0.00 | G28: =SUM(G22:G27) -> 0.00 | H28: 0.00 | I28: 0.00
A30: Раздел | B30: № рец. | C30: Блюдо | D30: Выход, г | E30: Цена | F30: Ккал | G30: Белки | H30: Жиры | I30: Угл-ды
A31: Старшие
A32: доп.гарнир
A33: 2 блюдо
A34: гарнир
A35: гор.напиток
A36: хлеб
C38: питание старшие | F38: =SUM(F32:F36) -> 0.00 | G38: =SUM(G32:G36) -> 0.00 | H38: 0.00 | I38: 0.00

Sheet 10.05
A2: МБОУ "СОШ №33" НМР РТ | D2: Отд./корп | E2: 2 неделя | H2: День | I2: 2023-05-10
A4: Раздел | B4: № рец. | C4: Блюдо | D4: Выход, г | E4: Цена | F4: Ккал | G4: Белки | H4: Жиры | I4: Угл-ды
A5: Завтрак
A6: фрукт | C6: Фруктя (яблоки) | D6: 100 | F6: 47 | G6: 0.4 | H6: 0.4 | I6: 9.80
A7: 2 блюдо | B7: 223 | C7: Запеканка творожная с молоком сгущенным | D7: 130/20 | F7: 386.00 | G7: 14.200 | H7: 19.060 | I7: 38.99
A8: гор.напиток | B8: 377 | C8: Чай с сахаром и лимоном | D8: 187/8/5 | F8: 34.02 | G8: 0.13 | H8: 0.02 | I8: 8.20
A9: хлеб | C9: Батон нарезной | D9: 50 | F9: 131 | G9: 3.75 | H9: 1.45 | I9: 25.70
D10: 500 | E10: 37.55 | F10: =SUM(F6:F9) -> 598.02 | G10: =SUM(G6:G9) -> 18.48 | H10: =SUM(H6:H9) -> 20.93 | I10: =SUM(I6:I9) -> 82.69
A11: Обед
B12: 1 | C12: Бутерброд с маслом сливочным (30/10) | D12: 40 | F12: 136.00 | G12: 2.36 | H12: 7.49 | I12: 14.89
A13: 1 блюдо | B13: 102 | C13: Суп картофельный с горохом | D13: 200 | F13: 198.60 | G13: 5.39 | H13: 7.22 | I13: 13.23
A14: 2 блюдо | B14: 291 | C14: Плов с куриными грудками | D14: 50/150 | F14: 270.50 | G14: 13.42 | H14: 11.43 | I14: 37.93
A15: напиток | C15: Напиток из замороженных фруктов | D15: 200 | F15: 68.12 | G15: 0.20 | H15: 0.10 | I15: 19.82
A16: хлеб | C16: Хлеб ржаной/пшеничный | D16: 45/20 | F16: 136.10 | G16: 4.49 | H16: 0.70 | I16: 27.66
D17: 705 | E17: 77.09 | F17: =SUM(F12:F16) -> 809.32 | G17: =SUM(G12:G16) -> 25.86 | H17: =SUM(H12:H16) -> 26.94 | I17: =SUM(I12:I16) -> 113.53
C18: бесп питание младшие + допол. питание | D18: =SUM(D10+D17) -> 1205 | E18: 114.64 | F18: 1407.34 | G18: 44.34 | H18: 47.87 | I18: 196.22
A20: Горячий завтрак (младшие)
B21: 1 | C21: Бутерброд с маслом сливочным (30/10) | D21: 40 | F21: 136.00 | G21: 2.36 | H21: 7.49 | I21: 14.89
A22: 2 блюдо | B22: 291 | C22: Плов с куриными грудками | D22: 50/150 | F22: 270.50 | G22: 13.42 | H22: 11.43 | I22: 37.93
A23: гор.напиток | B23: 377 | C23: Чай с сахаром и лимоном | D23: 187/8/5 | F23: 34.02 | G23: 0.13 | H23: 0.02 | I23: 8.20
A24: хлеб | C24: Хлеб ржаной/пшеничный | D24: 20/30 | F24: 129.90 | G24: 4.26 | H24: 0.60 | I24: 26.64
C26: бесплатное питание младшие | D26: 500 | E26: 77.09 | F26: =SUM(F21:F24) -> 570.42 | G26: =SUM(G21:G24) -> 20.17 | H26: =SUM(H21:H24) -> 19.54 | I26: =SUM(I21:I24) -> 87.66
A28: Раздел | B28: № рец. | C28: Блюдо | D28: Выход, г | E28: Цена | F28: Ккал | G28: Белки | H28: Жиры | I28: Угл-ды
A29: Старшие
B30: 1 | C30: Бутерброд с маслом сливочным (30/10) | D30: 40 | F30: 136.00 | G30: 2.36 | H30: 7.49 | I30: 14.89
A31: 2 блюдо | B31: 291 | C31: Плов с куриными грудками | D31: 250 | F31: 317.00 | G31: 15.32 | H31: 14.14 | I31: 35.51
A32: напиток | B32: 344 | C32: Напиток из замороженных фруктов | D32: 200 | F32: 68.12 | G32: 0.20 | H32: 0.10 | I32: 19.82
A33: хлеб | C33: Хлеб ржаной/пшеничный | D33: 30/30 | F33: 129.90 | G33: 4.26 | H33: 0.60 | I33: 26.64
C35: питание старшие | D35: 550 | E35: 78.50 | F35: =SUM(F30:F33) -> 651.02 | G35: =SUM(G30:G33) -> 22.14 | H35: 22.33 | I35: 96.86

Sheet 11.05
A2: МБОУ "СОШ №33" НМР РТ | D2: Отд./корп | E2: 2 неделя | H2: День | I2: 2023-05-11
A4: Раздел | B4: № рец. | C4: Блюдо | D4: Выход, г | E4: Цена | F4: Ккал | G4: Белки | H4: Жиры | I4: Угл-ды
A5: Завтрак
B6: 1 | C6: Бутерброд с повидлом и маслом сливочным (30/15/5) | D6: 30/15/5 | F6: 141.5 | G6: 2.38 | H6: 3.87 | I6: 24.25
A7: 2 блюдо | B7: 173 | C7: Каша пшеничная молочная | D7: 200 | F7: 186.80 | G7: 8.58 | H7: 10.0 | I7: 12.1
A8: гор.напиток | B8: 376 | C8: Чай с сахаром | D8: 200 | F8: 32 | G8: 0.07 | H8: 0.02 | I8: 8
A9: хлеб | C9: Батон нарезной | D9: 50 | F9: 131 | G9: 3.75 | H9: 1.45 | I9: 25.7
D10: 500 | E10: 37.55 | F10: =SUM(F6:F9) -> 491.30 | G10: =SUM(G6:G9) -> 14.78 | H10: =SUM(H6:H9) -> 15.32 | I10: =SUM(I6:I9) -> 70.05
A11: Обед
A12: хлеб | C12: Печенье | D12: 30 | F12: 122.10 | G12: 2.22 | H12: 2.82 | I12: 21.93
A13: 1 блюдо | B13: 95 | C13: Рассольник "Домашний" со сметаной | D13: 200/5 | F13: 99.70 | G13: 3.80 | H13: 4.82 | I13: 20.33
A14: 2 блюдо | C14: Котлеты "Здоровье" из куриных грудок | D14: 90 | F14: 120.63 | G14: 6.25 | H14: 12.24 | I14: 0.82
A15: гарнир | B15: 203 | C15: Макаронные изделия отварные с маслом сливочным | D15: 150/3 | F15: 146.10 | G15: 5.68 | H15: 2.88 | I15: 17.96
A16: напиток | B16: 342 | C16: Компот из свежих яблок | D16: 200 | F16: 46.6 | G16: 0.16 | H16: 0.16 | I16: 10.91
A17: хлеб | C17: Хлеб ржаной/пшеничный | D17: 45/20 | F17: 136.10 | G17: 4.49 | H17: 0.70 | I17: 27.66
D18: 743 | E18: 77.09 | F18: =SUM(F12:F17) -> 671.23 | G18: =SUM(G12:G17) -> 22.60 | H18: =SUM(H12:H17) -> 23.62 | I18: =SUM(I12:I17) -> 99.61
C19: бесп питание младшие + допол. питание | D19: =D10+D18 -> 1243 | E19: =SUM(E10+E18) -> 114.64 | F19: =SUM(F10+F18) -> 1162.53 | G19: =SUM(G10+G18) -> 37.38 | H19: =SUM(H10+H18) -> 38.94 | I19: =SUM(I10+I18) -> 169.66
A21: Горячий завтрак (младшие)
A22: хлеб | C22: Печенье | D22: 50 | F22: 203.50 | G22: 3.70 | H22: 4.70 | I22: 36.55
A23: 2 блюдо | C23: Котлеты "Здоровье" из куриных грудок | D23: 90 | F23: 120.63 | G23: 6.25 | H23: 12.24 | I23: 0.82
A24: гарнир | B24: 203 | C24: Макаронные изделия отварные с маслом сливочным | D24: 150/3 | F24: 146.10 | G24: 5.68 | H24: 2.88 | I24: 17.96
A25: гор.напиток | B25: 376 | C25: Чай с сахаром | D25: 200 | F25: 32 | G25: 0.07 | H25: 0.02 | I25: 8
A26: хлеб | C26: Хлеб ржаной/пшеничный | D26: 20/30 | F26: 110.10 | G26: 3.60 | H26: 0.48 | I26: 22.68
C28: бесплатное питание младшие | D28: 543 | E28: 77.09 | F28: =SUM(F22:F26) -> 612.33 | G28: =SUM(G22:G26) -> 19.30 | H28: =SUM(H22:H26) -> 20.32 | I28: =SUM(I22:I26) -> 86.01
A30: Раздел | B30: № рец. | C30: Блюдо | D30: Выход, г | E30: Цена | F30: Ккал | G30: Белки | H30: Жиры | I30: Угл-ды
A31: Старшие
A32: хлеб | C32: Печенье | D32: 30 | F32: 122.10 | G32: 2.22 | H32: 2.82 | I32: 21.93
A33: 2 блюдо | C33: Котлеты "Здоровье" из куриных грудок | D33: 100 | F33: 189.59 | G33: 9.50 | H33: 15.55 | I33: 5.47
A34: гарнир | B34: 203 | C34: Макаронные изделия отварные с маслом сливочным | D34: 180/3 | F34: 207.36 | G34: 6.82 | H34: 2.98 | I34: 38.35
A35: гор.напиток | B35: 376 | C35: Чай с сахаром | D35: 200 | F35: 32 | G35: 0.7 | H35: 0.2 | I35: 8
A36: хлеб | C36: Хлеб ржаной/пшеничный | D36: 30/30 | F36: 129.90 | G36: 4.26 | H36: 0.60 | I36: 26.64
C37: питание старшие | D37: 573 | E37: 78.50 | F37: =SUM(F32:F36) -> 680.95 | G37: =SUM(G32:G36) -> 23.50 | H37: 22.15 | I37: 100.39

Sheet 12.05
A2: МБОУ "СОШ №33" НМР РТ | D2: Отд./корп | E2: 2 неделя | H2: День | I2: 2023-05-12
A4: Раздел | B4: № рец. | C4: Блюдо | D4: Выход, г | E4: Цена | F4: Ккал | G4: Белки | H4: Жиры | I4: Угл-ды
A5: Завтрак
A6: фрукт | C6: Фрукты (яблоки) | D6: 100 | F6: 47.00 | G6: 0.40 | H6: 0.40 | I6: 9.80
A7: 2 блюдо | B7: 174 | C7: Каша рисовая молочная (вязкая) с маслом сливочным | D7: 150/5 | F7: 209.33 | G7: 6.48 | H7: 10.31 | I7: 26.52
A8: гор.напиток | B8: 382 | C8: Какао с молоком | D8: 200 | F8: 58.60 | G8: 4.08 | H8: 3.54 | I8: 2.61
A9: хлеб | C9: Батон нарезной | D9: 50 | F9: 132 | G9: 3.76 | H9: 1.74 | I9: 30.84
D10: 505 | E10: 37.55 | F10: =SUM(F6:F9) -> 446.93 | G10: =SUM(G6:G9) -> 14.72 | H10: 15.99 | I10: 69.77
A11: Обед
B12: 52 | C12: Салат из свеклы отварной с растительным маслом | D12: 60 | F12: 55.68 | G12: 0.84 | H12: 3.61 | I12: 4.960
A13: 1 блюдо | B13: 101 | C13: Суп картофельный с крупой (пшено) | D13: 200 | F13: 42.00 | G13: 4.57 | H13: 3.17 | I13: 9.70
A14: 2 блюдо | C14: Жаркое из птицы (куриных грудок) | D14: 50/150 | F14: 373.54 | G14: 12.01 | H14: 15.27 | I14: 49.760
A15: напиток | B15: 349 | C15: Напиток из сухофруктов | D15: 200 | F15: 132.80 | G15: 0.70 | H15: 0.10 | I15: 32.00
A16: хлеб | C16: Хлеб ржаной/пшеничный | D16: 45/20 | F16: 136.10 | G16: 4.49 | H16: 0.70 | I16: 27.66
D17: 725 | E17: 77.09 | F17: =SUM(F12:F16) -> 740.12 | G17: =SUM(G12:G16) -> 22.61 | H17: 22.85 | I17: 124.08
C18: бесп питание младшие + допол. питание | D18: =D10+D17 -> 1230 | E18: =SUM(E10+E17) -> 114.64 | F18: =F10+F17 -> 1187.05 | G18: =G10+G17 -> 37.33 | H18: =H10+H17 -> 38.84 | I18: =I10+I17 -> 193.85
A20: Горячий завтрак (младшие)
A21: фрукт | C21: Фрукты (яблоки) | D21: 100 | F21: 47.00 | G21: 0.40 | H21: 0.40 | I21: 9.80
A22: 2 блюдо | C22: Жаркое из птицы (куриных грудок) | D22: 50/150 | F22: 373.54 | G22: 12.01 | H22: 15.27 | I22: 49.760
A23: напиток | B23: 382 | C23: Какао с молоком | D23: 200 | F23: 58.60 | G23: 4.08 | H23: 3.54 | I23: 2.61
A24: хлеб | C24: Хлеб ржаной/пшеничный | D24: 20/30 | F24: 110.10 | G24: 3.60 | H24: 0.48 | I24: 22.68
C26: бесплатное питание младшие | D26: 550 | E26: 77.09 | F26: =SUM(F21:F25) -> 589.24 | G26: =SUM(G21:G25) -> 20.09 | H26: 19.69 | I26: 84.85
A28: Раздел | B28: № рец. | C28: Блюдо | D28: Выход, г | E28: Цена | F28: Ккал | G28: Белки | H28: Жиры | I28: Угл-ды
A29: Старшие
A30: фрукты | C30: Фрукты (яблоки) | D30: 100 | F30: 47.00 | G30: 0.40 | H30: 0.40 | I30: 9.80
A31: 1 блюдо
A32: 2 блюдо | C32: Жаркое из птицы (куриных грудок) | D32: 250 | F32: 452.03 | G32: 16.21 | H32: 22.21 | I32: 36.300
A33: напиток | B33: 349 | C33: Напиток из сухофруктов | D33: 200 | F33: 84.80 | G33: 0.66 | H33: 0.09 | I33: 20.04
A34: хлеб | C34: Хлеб ржаной/пшеничный | D34: 30/30 | F34: 129.90 | G34: 4.26 | H34: 0.60 | I34: 26.64
C36: питание старшие | D36: 610 | E36: 78.50 | F36: =SUM(F30:F34) -> 713.73 | G36: =SUM(G30:G34) -> 21.53 | H36: 23.30 | I36: 92.78

Sheet 13.05
A2: МБОУ "СОШ №33" НМР РТ | D2: Отд./корп | E2: 2 неделя | H2: День | I2: 2023-05-13
A4: Раздел | B4: № рец. | C4: Блюдо | D4: Выход, г | E4: Цена | F4: Ккал | G4: Белки | H4: Жиры | I4: Угл-ды
A5: Старшие
B6: 3 | C6: Бутерброд с сыром и маслом сливочным (30/15/5) | D6: 50 | F6: 136.00 | G6: 9.06 | H6: 11.61 | I6: 0.07
A7: 2 блюдо | B7: 293 | C7: Курица запеченая | D7: 100 | F7: 206.40 | G7: 4.07 | H7: 4.30 | I7: 0.00
A8: гарнир | B8: 199 | C8: Гороховое пюре с маслом сливочным | D8: 180/3 | F8: 200.28 | G8: 4.84 | H8: 7.00 | I8: 50.70
A9: напиток | B9: 376 | C9: Чай с сахаром | D9: 200 | F9: 32.00 | G9: 0.70 | H9: 0.20 | I9: 8.00
A10: хлеб | C10: Хлеб пшеничный/ржаной | D10: 30/30 | F10: 129.90 | G10: 4.26 | H10: 0.60 | I10: 26.64
C12: питание старшие | D12: 593 | E12: 78.50 | F12: =F6+F7+F8+F9+F10 -> 704.58 | G12: =G6+G7+G8+G9+G10 -> 22.93 | H12: =H6+H7+H8+H9+H10 -> 23.71 | I12: =I6+I7+I8+I9+I10 -> 85.41
